bitfinex/quotes_SOLUSD_20250129
["timestamp","ask_amount","ask_price","bid_price","bid_amount"]
[1738164633028,0.03,228.6,228.59,7.5746]
[1738164635448,0.03,228.66,228.63,50.0]
[1738164635657,0.03,228.66,228.64,0.43719211]
[1738164637125,0.03,228.66,228.65,4.3734]
[1738164638557,0.03,228.66,228.65,319.5734]
[1738164638732,0.03,228.66,228.65,7.5734]
[1738164641462,0.03,228.66,228.62,4.3738]
[1738164641654,0.15549,228.66,228.6,3.2]
[1738164642130,0.03,228.66,228.6,3.2]
[1738164643861,24.057864,228.66,228.57,4.375]
[1738164644661,0.03,228.66,228.57,4.81242208]
[1738164644861,0.03,228.66,228.57,4.375]
[1738164645548,0.03,228.66,228.57,4.81237063]
[1738164645934,0.03,228.66,228.57,4.375]
[1738164650261,0.03,228.66,228.58,0.43738561]
[1738164650564,0.03,228.66,228.6,20.0]
[1738164650864,0.03,228.66,228.61,0.43730256]
[1738164651237,0.03,228.66,228.61,30.43730256]
[1738164651434,0.03,228.66,228.61,362.43730256]
[1738164651642,0.03,228.66,228.61,362.0]
[1738164651943,0.03,228.66,228.62,0.12549]
[1738164652150,0.03,228.66,228.63,0.43722894]
[1738164652342,0.03,228.66,228.65,20.0]
[1738164652543,0.03,228.66,228.65,20.43722663]
[1738164653269,0.03,228.66,228.65,24.81062663]
[1738164653479,0.03,228.74,228.65,35.74432663]
[1738164654065,0.03,228.66,228.65,35.74432663]
[1738164654445,0.03,228.74,228.65,35.74432663]
[1738164654849,0.03,228.74,228.7,20.0]
[1738164655186,0.03,228.74,228.71,0.43712677]
[1738164655346,0.03,228.74,228.72,4.3721]
[1738164657467,0.03,228.74,228.72,24.80920975]
[1738164658041,0.03,228.74,228.72,24.3721]
[1738164658460,0.03,228.74,228.73,0.43711566]
[1738164659392,0.03,228.74,228.72,24.3721]
[1738164660293,0.03,228.74,228.66,136.4]
[1738164660493,0.03,228.74,228.67,3.18]
[1738164660664,1.80898,228.73,228.67,3.18]
[1738164661564,0.03,228.74,228.68,0.43727188]
[1738164662055,0.12549,228.73,228.67,3.18]
[1738164662459,24.027864,228.73,228.67,3.18]
[1738164663184,0.03,228.74,228.67,7.553]
[1738164663692,0.03,228.74,228.67,7.99017948]
[1738164664088,0.03,228.74,228.67,7.553]
[1738164664267,0.03,228.74,228.67,7.99021105]
[1738164665491,0.28098,228.74,228.65,4.3734]
[1738164665784,0.28098,228.74,228.65,7.5534]
[1738164666160,0.03,228.74,228.66,0.43723958]
[1738164666357,0.03,228.74,228.65,7.5534]
[1738164666587,0.03,228.74,228.64,4.3736]
[1738164666789,0.25098,228.73,228.64,4.3736]
[1738164666973,0.28098,228.73,228.64,4.3736]
[1738164667177,24.057864,228.73,228.64,4.3736]
[1738164667379,0.12549,228.71,228.64,4.3736]
[1738164667577,24.027864,228.71,228.58,0.43731325]
[1738164667888,1.70859,228.68,228.59,7.5546]
[1738164668384,0.12549,228.66,228.59,3.18]
[1738164668860,0.12549,228.64,228.57,0.063]
[1738164669489,1.87499,228.64,228.57,0.063]
[1738164669989,0.12549,228.62,228.57,0.063]
[1738164671597,0.25098,228.6,228.57,0.063]
[1738164671962,1.7496,228.62,228.57,0.063]
[1738164672287,25.651874,228.63,228.57,0.063]
[1738164672883,1.7495,228.63,228.57,0.063]
[1738164673187,3.3323,228.68,228.58,0.43746404]
[1738164673366,0.37647,228.67,228.57,24.4379]
[1738164673561,0.25098,228.65,228.57,24.4379]
[1738164673762,0.12549,228.64,228.58,3.21953057]
[1738164673972,0.12549,228.61,228.58,3.21953057]
[1738164674191,0.12549,228.59,228.58,3.21953057]
[1738164674504,44.68172398,228.59,228.58,3.21953057]
[1738164675185,44.68172398,228.59,228.47,4.4398]
[1738164675186,0.12549,228.53,228.47,0.063]
[1738164675570,24.153354,228.52,228.47,0.063]
[1738164676373,1.7502,228.55,228.47,0.063]
[1738164676808,24.153354,228.54,228.47,0.063]
[1738164676980,36.79152398,228.54,228.47,0.063]
[1738164677184,36.29152398,228.54,228.47,0.063]
[1738164677380,1.7502,228.55,228.47,0.063]
[1738164677381,40.44215998,228.48,228.47,0.063]
[1738164677609,42.19285998,228.48,228.47,0.063]
[1738164677802,43.19285998,228.48,228.47,0.063]
[1738164678105,27.80399,228.48,228.47,0.063]
[1738164678616,7.80399,228.48,228.47,0.063]
[1738164679003,1.0,228.54,228.47,0.063]
[1738164679004,14.38856998,228.52,228.47,0.063]
[1738164679514,40.54222398,228.48,228.47,0.063]
[1738164679882,0.37647,228.43,228.35,0.063]
[1738164680221,0.25098,228.38,228.35,0.063]
[1738164680384,24.027864,228.38,228.35,0.063]
[1738164680583,12.63816998,228.37,228.35,0.063]
[1738164680923,14.26636998,228.41,228.35,0.063]
[1738164681283,12.63816998,228.39,228.35,0.063]
[1738164681608,0.25098,228.38,228.35,0.063]
[1738164682116,0.25098,228.39,228.35,0.063]
[1738164682485,1.6282,228.41,228.35,0.063]
[1738164682693,6.4275,228.42,228.35,4.4421]
[1738164682896,1.5541,228.46,228.35,4.4421]
[1738164683295,6.0151,228.48,228.36,20.43780408]
[1738164683588,2.00178,228.47,228.38,4.3786]
[1738164683787,0.25098,228.47,228.38,4.3786]
[1738164684009,0.25098,228.47,228.38,4.81635661]
[1738164684197,14.19226998,228.51,228.39,20.0]
[1738164684401,15.94276998,228.51,228.39,20.0]
[1738164684909,0.25098,228.46,228.38,4.3786]
[1738164685315,12.76365998,228.45,228.37,3.2]
[1738164685488,24.027864,228.44,228.35,0.063]
[1738164685684,24.027864,228.42,228.35,0.063]
[1738164686611,24.027864,228.42,228.35,4.4422]
[1738164686804,5.3768,228.48,228.35,0.063]
[1738164686805,21.99980318,228.44,228.35,0.063]
[1738164687197,0.25098,228.41,228.35,0.063]
[1738164687806,2.00218,228.41,228.35,0.063]
[1738164688787,0.25098,228.41,228.35,0.063]
[1738164689107,1.7511,228.43,228.35,4.4422]
[1738164689488,0.25098,228.42,228.35,4.4422]
[1738164689683,0.25098,228.4,228.35,0.063]
[1738164689920,44.27666718,228.4,228.38,0.063]
[1738164691491,2.12777,228.39,228.38,0.063]
[1738164691903,0.25098,228.39,228.38,0.063]
[1738164693109,2.00228,228.39,228.38,0.063]
[1738164694922,25.779164,228.39,228.38,0.063]
[1738164696217,27.458154,228.39,228.38,0.063]
[1738164696431,20.37647,228.36,228.35,0.063]
[1738164696631,64.40215718,228.36,228.35,0.063]
[1738164697501,66.15375718,228.36,228.35,0.063]
[1738164698814,46.15375718,228.36,228.35,0.063]
[1738164699935,2.70365692,228.43,228.35,0.063]
[1738164699936,21.84900318,228.45,228.35,0.063]
[1738164700112,21.84900318,228.45,228.35,4.4422]
[1738164700113,1.6002,228.45,228.35,4.4422]
[1738164700636,23.59990318,228.45,228.35,4.4422]
[1738164701917,20.24880318,228.47,228.35,4.88006658]
[1738164702117,20.24880318,228.47,228.35,4.4422]
[1738164702318,21.99960318,228.47,228.35,4.4422]
[1738164702509,24.153354,228.46,228.35,4.4422]
[1738164702924,24.153354,228.46,228.35,316.4422]
[1738164703553,1.7509,228.45,228.35,316.4422]
[1738164703914,0.03,228.47,228.36,0.4378056]
[1738164704239,0.03,228.47,228.38,20.0]
[1738164704439,1.7807,228.47,228.38,20.0]
[1738164704830,0.03,228.47,228.38,20.0]
[1738164705138,0.03,228.47,228.39,0.4377614]
[1738164705525,0.03,228.47,228.39,136.8377614]
[1738164705727,0.03,228.47,228.42,20.0]
[1738164705923,0.03,228.47,228.42,0.43765187]
[1738164706119,0.03,228.47,228.4,140.7782]
[1738164706320,0.03,228.47,228.41,0.43772831]
[1738164707130,0.03,228.47,228.41,312.43772831]
[1738164707433,0.03,228.47,228.44,20.0]
[1738164707633,0.03,228.47,228.46,4.3771]
[1738164707942,0.03,228.47,228.44,24.3773]
[1738164708130,0.03,228.47,228.42,142.4034]
[1738164708731,0.03,228.47,228.42,138.0257]
[1738164708937,0.03,228.47,228.42,136.4]
[1738164709846,36.70293053,228.47,228.37,9.1486]
[1738164710531,0.12549,228.46,228.37,5.9486]
[1738164710738,24.027864,228.42,228.35,0.063]
[1738164711547,0.25098,228.4,228.35,0.063]
[1738164711939,2.00228,228.4,228.35,0.063]
[1738164713342,23.776884,228.42,228.35,0.063]
[1738164713521,12.64506653,228.45,228.35,4.4421]
[1738164714139,0.25098,228.39,228.35,0.063]
[1738164715626,24.153354,228.36,228.35,0.063]
[1738164716042,25.904954,228.36,228.35,0.063]
[1738164716255,25.678254,228.35,228.34,0.063]
[1738164716428,38.32332053,228.35,228.34,0.063]
[1738164717026,39.32332053,228.35,228.34,0.0001]
[1738164717231,38.32332053,228.35,228.34,0.0001]
[1738164718155,40.07492053,228.35,228.34,0.0001]
[1738164719028,25.904954,228.35,228.34,0.0001]
[1738164720237,38.55002053,228.35,228.34,0.0001]
[1738164721057,38.55002053,228.35,228.33,0.0001]
[1738164721058,0.12549,228.34,228.33,0.0001]
[1738164721259,25.153354,228.34,228.33,0.0001]
[1738164722346,26.905054,228.34,228.33,0.0001]
[1738164723434,2.12817,228.34,228.33,0.0001]
[1738164723643,2.00268,228.34,228.33,0.0001]
[1738164723845,0.25098,228.34,228.33,0.0001]
[1738164724061,14.39636653,228.39,228.33,0.0001]
[1738164724548,12.64506653,228.37,228.33,0.0001]
[1738164724753,24.153354,228.36,228.33,0.0001]
[1738164724947,24.153354,228.34,228.33,0.0001]
[1738164726263,32.039654,228.34,228.33,0.0001]
[1738164726838,33.039654,228.34,228.33,0.0001]
[1738164727240,0.37647,228.25,228.24,0.063]
[1738164727449,36.79842053,228.25,228.24,0.063]
[1738164728345,38.55082053,228.25,228.24,0.063]
[1738164728552,46.19217176,228.25,228.24,0.063]
[1738164732646,20.25098,228.22,228.21,0.063]
[1738164732847,64.43977176,228.22,228.21,0.063]
[1738164733462,66.19237176,228.22,228.21,0.063]
[1738164733764,45.905954,228.22,228.21,0.063]
[1738164734065,66.19237176,228.22,228.21,0.063]
[1738164735866,40.53739776,228.22,228.21,0.063]
[1738164736058,20.28641776,228.26,228.21,0.063]
[1738164736384,22.03861776,228.28,228.21,0.063]
[1738164736558,1.7522,228.28,228.21,0.063]
[1738164736952,0.25098,228.27,228.21,0.063]
[1738164737258,20.25098,228.27,228.21,0.063]
[1738164737446,1.7522,228.28,228.21,0.063]
[1738164737653,1.7521,228.29,228.21,4.4448]
[1738164737851,0.25098,228.28,228.21,0.063]
[1738164738452,20.0,228.27,228.21,0.063]
[1738164739576,25.905754,228.26,228.21,0.063]
[1738164739762,1.7524,228.26,228.21,0.063]
[1738164739966,20.28641776,228.32,228.21,4.4448]
[1738164740174,0.37647,228.29,228.21,0.063]
[1738164740379,24.153354,228.29,228.21,0.063]
[1738164740577,20.28641776,228.28,228.21,0.063]
[1738164740785,20.0,228.25,228.21,0.063]
[1738164741277,0.25098,228.24,228.21,0.063]
[1738164741781,1.7526,228.23,228.21,0.063]
[1738164742071,25.905754,228.25,228.21,0.063]
[1738164742872,2.00338,228.25,228.21,0.063]
[1738164743073,20.28641776,228.3,228.21,4.4449]
[1738164743280,1.7519,228.32,228.21,4.4449]
[1738164743281,22.03831776,228.32,228.21,4.4449]
[1738164743455,20.0,228.29,228.21,4.4449]
[1738164743655,21.7521,228.29,228.21,4.4449]
[1738164743860,22.03851776,228.3,228.21,4.4449]
[1738164744479,24.153354,228.27,228.21,0.063]
[1738164744688,0.25098,228.25,228.21,0.063]
[1738164745367,0.25098,228.26,228.21,0.063]
[1738164745755,1.7524,228.25,228.21,0.063]
[1738164746983,20.28641776,228.3,228.21,4.4448]
[1738164747287,0.03,228.34,228.21,149.13888522]
[1738164747469,0.03,228.34,228.21,148.7007]
[1738164747667,0.03,228.34,228.22,0.43804185]
[1738164747861,0.03,228.34,228.24,20.0]
[1738164748062,0.03,228.34,228.25,0.43800664]
[1738164749058,0.03,228.34,228.29,20.0]
[1738164749360,0.03,228.34,228.3,8.348115]
[1738164749672,0.03,228.34,228.33,20.0]
[1738164750173,0.03,228.34,228.32,3.2]
[1738164750363,0.03,228.34,228.3,7.9102]
[1738164752072,0.03,228.34,228.3,12.2903]
[1738164752266,0.03,228.34,228.33,20.0]
[1738164753363,0.03,228.34,228.33,24.3796]
[1738164753568,23.806884,228.47,228.38,20.0]
[1738164753569,0.03,228.47,228.38,20.0]
[1738164753771,0.03,228.47,228.39,0.43773748]
[1738164754354,0.03,228.47,228.4,7.7512]
[1738164754559,0.03,228.47,228.41,0.43764698]
[1738164755297,0.03,228.47,228.42,4.3779]
[1738164757592,0.03,228.47,228.41,4.81572374]
[1738164758574,0.03,228.47,228.41,15.76092374]
[1738164758773,0.03,228.47,228.41,152.16092374]
[1738164758993,0.03,228.47,228.41,140.778]
[1738164760082,0.03,228.47,228.42,0.43768149]
[1738164761576,0.03,228.47,228.43,4.3777]
[1738164761779,0.03,228.47,228.43,140.7777]
[1738164763299,0.03,228.47,228.41,4.3779]
[1738164765391,0.03,228.47,228.41,4.81562442]
[1738164765591,0.03,228.47,228.41,152.16082442]
[1738164765793,0.03,228.47,228.41,151.7231]
[1738164765991,0.03,228.47,228.42,0.43761707]
[1738164766405,0.03,228.47,228.43,4.3777]
[1738164766710,0.03,228.47,228.42,7.5578]
[1738164767012,0.03,228.47,228.42,7.99550736]
[1738164767197,0.03,228.47,228.45,20.0]
[1738164767589,0.03,228.47,228.42,227.0578]
[1738164768796,0.03,228.47,228.43,0.43768604]
[1738164768988,0.03,228.47,228.42,227.0578]
[1738164770401,0.03,228.47,228.43,0.43767388]
[1738164770715,0.03,228.47,228.46,20.0]
[1738164771001,0.03,228.47,228.46,24.81464403]
[1738164772907,0.03,228.47,228.46,336.81464403]
[1738164773109,0.03,228.47,228.46,336.3771]
[1738164774212,0.03,228.47,228.46,24.3771]
[1738164774426,0.03,228.47,228.46,140.7771]
[1738164774790,0.03,228.47,228.46,136.4]
[1738164775009,0.03,228.47,228.43,4.3777]
[1738164775212,0.03,228.47,228.43,4.81532568]
[1738164775390,0.03,228.47,228.43,15.75952568]
[1738164775894,0.03,228.47,228.43,4.81532568]
[1738164776207,0.03,228.47,228.43,4.3777]
[1738164776410,0.03,228.47,228.39,0.4377588]
[1738164776709,0.03,228.47,228.38,140.7784]
[1738164777294,0.28098,228.47,228.38,140.7784]
[1738164777494,0.03,228.47,228.38,140.7784]
[1738164778411,0.03,228.47,228.39,0.43774414]
[1738164779209,0.03,228.47,228.41,20.0]
[1738164779516,0.03,228.47,228.42,4.3779]
[1738164779695,0.28098,228.47,228.38,140.7784]
[1738164779893,0.28098,228.47,228.38,4.3784]
[1738164780716,24.153354,228.43,228.33,136.4]
[1738164780911,20.28641776,228.42,228.32,4.3798]
[1738164781119,20.28641776,228.46,228.32,141.2176821]
[1738164781316,22.03731776,228.46,228.32,151.7293]
[1738164781796,0.03,228.47,228.37,20.0]
[1738164782105,0.03,228.47,228.38,0.43774621]
[1738164782308,0.03,228.47,228.38,136.83774621]
[1738164782630,0.03,228.47,228.38,136.4]
[1738164782919,0.03,228.47,228.41,20.0]
[1738164783111,0.03,228.47,228.42,0.43769233]
[1738164783413,0.03,228.47,228.43,4.3777]
[1738164783821,0.03,228.47,228.44,0.43766651]
[1738164784804,0.03,228.47,228.43,140.7777]
[1738164785116,0.03,228.47,228.44,0.43766879]
[1738164785501,0.03,228.47,228.45,4.3773]
[1738164786518,0.03,228.47,228.46,24.81472497]
[1738164787216,0.03,228.47,228.43,136.4]
[1738164788896,24.183354,228.47,228.39,136.4]
[1738164789211,0.25098,228.45,228.39,136.4]
[1738164789398,1.5841,228.47,228.39,136.4]
[1738164789601,1.5841,228.47,228.39,140.7784]
[1738164790098,1.5841,228.47,228.39,136.4]
[1738164790299,44.43977176,228.46,228.39,136.4]
[1738164790519,20.28641776,228.44,228.39,136.4]
[1738164790732,46.19057176,228.46,228.39,136.4]
[1738164791230,0.03,228.47,228.4,0.43780011]
[1738164791402,0.03,228.47,228.4,30.43780011]
[1738164791596,0.03,228.47,228.46,20.0]
[1738164791799,0.03,228.47,228.46,140.01760957]
[1738164791998,0.03,228.47,228.46,139.58]
[1738164792599,0.03,228.47,228.46,143.9571]
[1738164794320,0.03,228.47,228.46,140.7771]
[1738164794519,0.03,228.47,228.46,136.4]
[1738164795114,0.03,228.47,228.46,170.7771]
[1738164796329,0.03,228.47,228.46,136.4]
[1738164797102,0.03,228.47,228.43,136.4]
[1738164797518,0.03,228.47,228.38,3.18]
[1738164797519,20.31641776,228.47,228.38,3.18]
[1738164798028,20.28641776,228.45,228.38,3.18]
[1738164799010,22.03731776,228.45,228.38,3.18]
[1738164800013,0.25098,228.44,228.38,3.18]
[1738164801036,2.00198,228.44,228.38,3.18]
[1738164801240,20.31641776,228.47,228.39,4.3784]
[1738164801449,0.03,228.47,228.4,0.43776171]
[1738164802233,0.03,228.47,228.39,4.3784]
[1738164803022,22.31809776,228.47,228.37,136.4]
[1738164803240,20.28641776,228.43,228.37,136.4]
[1738164803609,20.28641776,228.45,228.37,140.7788]
[1738164803809,22.06711776,228.47,228.37,140.7788]
[1738164804122,1.7807,228.47,228.37,170.7788]
[1738164804330,1.7807,228.47,228.37,140.7788]
[1738164804511,22.06711776,228.47,228.37,140.7788]
[1738164804829,0.37647,228.46,228.37,136.4]
[1738164805130,1.751,228.44,228.37,136.4]
[1738164805346,1.751,228.44,228.34,139.643]
[1738164805347,20.53739776,228.43,228.34,139.643]
[1738164805537,20.53739776,228.43,228.34,136.463]
[1738164805709,20.28641776,228.41,228.34,0.063]
[1738164806221,0.25098,228.43,228.34,4.4423]
[1738164806421,1.751,228.44,228.34,4.4423]
[1738164806729,22.03731776,228.45,228.35,0.43783461]
[1738164806922,22.03731776,228.45,228.34,34.4423]
[1738164807231,20.28641776,228.43,228.34,4.4423]
[1738164808315,22.03751776,228.43,228.34,4.4423]
[1738164808514,1.7511,228.43,228.34,4.4423]
[1738164809424,0.25098,228.41,228.34,0.063]
[1738164811122,1.7511,228.42,228.34,4.4424]
[1738164811330,22.03751776,228.43,228.34,4.4424]
[1738164814738,0.25098,228.45,228.35,20.0]
[1738164815031,0.03,228.47,228.37,30.0]
[1738164815234,1.7508,228.46,228.37,30.0]
[1738164815430,0.03,228.47,228.38,0.43778879]
[1738164817039,0.03,228.47,228.39,4.3784]
[1738164817220,0.28098,228.47,228.39,4.3784]
[1738164817420,0.28098,228.47,228.35,225.7218]
[1738164817421,0.37647,228.46,228.35,225.7218]
[1738164817635,20.28641776,228.45,228.36,4.379]
[1738164817830,24.153354,228.44,228.34,0.063]
[1738164818136,20.28641776,228.4,228.34,0.063]
[1738164818337,20.28641776,228.42,228.34,4.4423]
[1738164818636,12.65209255,228.46,228.34,4.4423]
[1738164818827,12.65209255,228.44,228.34,140.8423]
[1738164819030,14.40309255,228.44,228.34,140.8423]
[1738164819224,0.25098,228.41,228.34,136.463]
[1738164819430,0.25098,228.41,228.34,0.063]
[1738164819936,0.25098,228.39,228.34,0.063]
[1738164820125,12.65209255,228.38,228.34,0.063]
[1738164820624,20.25584813,228.39,228.34,0.063]
[1738164821023,1.7514,228.38,228.34,0.063]
[1738164821434,20.50682813,228.37,228.34,0.063]
[1738164821641,20.63231813,228.35,228.34,0.063]
[1738164822740,40.63231813,228.35,228.34,0.063]
[1738164823547,66.16080213,228.35,228.34,0.063]
[1738164826249,40.50682813,228.35,228.34,0.063]
[1738164826628,66.16080213,228.35,228.34,0.063]
[1738164827038,20.25098,228.35,228.34,0.063]
[1738164827231,22.00258,228.35,228.34,0.063]
[1738164827437,66.16080213,228.35,228.34,0.063]
[1738164827624,46.16080213,228.35,228.34,0.063]
[1738164827829,47.16080213,228.35,228.34,0.063]
[1738164828028,25.904954,228.35,228.34,0.063]
[1738164829749,25.904954,228.35,228.34,0.0001]
[1738164840744,38.57437087,228.35,228.34,0.0001]
[1738164841942,39.57437087,228.35,228.34,0.0001]
[1738164842960,24.153354,228.25,228.24,0.063]
[1738164843269,36.82277087,228.25,228.24,0.063]
[1738164843446,24.153354,228.25,228.24,0.063]
[1738164843640,25.905754,228.25,228.24,0.063]
[1738164844032,38.57517087,228.25,228.24,0.0001]
[1738164844237,38.57517087,228.25,228.21,0.0001]
[1738164844238,0.37647,228.22,228.21,0.0001]
[1738164844466,36.82277087,228.22,228.21,0.0001]
[1738164845444,1.7524,228.25,228.21,0.0001]
[1738164846144,12.66941687,228.28,228.21,0.0001]
[1738164846353,12.66941687,228.3,228.21,0.0001]
[1738164846653,1.752,228.31,228.21,136.4001]
[1738164846857,12.66941687,228.32,228.22,0.4380809]
[1738164847062,0.03,228.35,228.22,166.8380809]
[1738164847291,12.66941687,228.34,228.23,0.43798941]
[1738164847661,1.7518,228.33,228.24,4.3813]
[1738164848084,0.25098,228.32,228.24,4.3813]
[1738164848471,36.69728087,228.32,228.22,140.7815]
[1738164848780,12.66941687,228.28,228.22,136.4]
[1738164848979,0.12549,228.29,228.22,136.4]
[1738164849975,14.42121687,228.34,228.23,0.43809988]
[1738164850159,0.03,228.35,228.23,136.83809988]
[1738164850483,12.66941687,228.34,228.23,136.4]
[1738164850783,12.66941687,228.3,228.23,136.4]
[1738164850983,12.92039687,228.32,228.23,136.4]
[1738164851357,12.66941687,228.32,228.23,136.4]
[1738164851759,12.66941687,228.34,228.23,136.4]
[1738164851959,12.66941687,228.34,228.24,4.3813]
[1738164852275,14.42111687,228.34,228.24,4.3813]
[1738164853072,12.66941687,228.34,228.24,4.81935525]
[1738164854980,14.42111687,228.34,228.24,4.81935525]
[1738164856062,0.03,228.35,228.25,1.5391]
[1738164856262,0.03,228.35,228.26,0.43797422]
[1738164856464,0.03,228.35,228.31,20.0]
[1738164856668,0.03,228.35,228.32,0.43789935]
[1738164856871,0.03,228.35,228.34,30.0]
[1738164857188,0.03,228.43,228.37,50.0]
[1738164857366,0.03,228.43,228.38,0.43771591]
[1738164857687,0.03,228.43,228.38,136.83771591]
[1738164857866,0.03,228.43,228.38,136.4]
[1738164858281,0.03,228.43,228.39,4.3784]
[1738164858482,0.03,228.43,228.4,0.43772252]
[1738164858797,0.03,228.43,228.4,0.43773666]
[1738164858962,0.03,228.43,228.42,20.0]
[1738164859162,0.03,228.43,228.42,156.83770117]
[1738164859392,0.03,228.43,228.42,156.4]
[1738164860479,0.03,228.43,228.42,160.7779]
[1738164863807,0.03,228.43,228.42,140.7779]
[1738164863979,0.03,228.43,228.42,136.4]
[1738164865167,0.03,228.43,228.42,140.7779]
[1738164865695,0.03,228.43,228.42,136.4]
[1738164866581,0.03,228.43,228.42,219.5]
[1738164868989,0.03,228.43,228.42,223.8779]
[1738164869585,0.03,228.43,228.42,219.5]
[1738164870769,0.03,228.43,228.42,223.8779]
[1738164872781,0.03,228.43,228.42,225.4905]
[1738164873692,0.03,228.43,228.42,537.4905]
[1738164874082,0.03,228.43,228.42,533.1126]
[1738164874295,0.03,228.43,228.42,221.1126]
[1738164875293,0.03,228.43,228.42,219.5]
[1738164875504,0.28098,228.43,228.36,136.4]
[1738164875696,12.66941687,228.42,228.36,136.4]
[1738164875992,0.03,228.43,228.36,136.4]
[1738164876197,0.03,228.43,228.36,140.7789]
[1738164876381,0.03,228.43,228.36,136.4]
[1738164876780,0.03,228.43,228.37,0.43781228]
[1738164877172,0.03,228.43,228.37,30.43781228]
[1738164877578,0.03,228.43,228.4,30.0]
[1738164877793,0.03,228.43,228.41,0.4376907]
[1738164877985,0.03,228.43,228.41,219.9376907]
[1738164878179,0.03,228.43,228.41,223.8779]
[1738164879190,0.03,228.43,228.42,0.43766307]
[1738164879571,0.03,228.43,228.42,4.81556307]
[1738164881380,0.03,228.43,228.42,224.31556307]
[1738164881587,0.03,228.43,228.42,223.8779]
[1738164881799,0.03,228.43,228.42,219.5]
[1738164882384,0.03,228.43,228.36,219.5]
[1738164883708,0.03,228.43,228.36,223.879]
[1738164884196,0.03,228.43,228.36,219.5]
[1738164886188,1.781,228.43,228.36,219.5]
[1738164887320,1.7512,228.41,228.36,219.5]
[1738164887494,1.7512,228.41,228.36,83.1]
[1738164887678,24.153354,228.4,228.36,83.1]
[1738164887880,12.66941687,228.38,228.36,83.1]
[1738164888086,24.153354,228.37,228.35,0.03]
[1738164888288,13.04588687,228.36,228.35,0.03]
[1738164889522,1.7516,228.36,228.35,0.03]
[1738164890485,0.37647,228.39,228.35,0.03]
[1738164890687,1.7512,228.41,228.35,136.43]
[1738164891129,32.66941687,228.4,228.35,136.43]
[1738164891311,0.37647,228.37,228.35,136.43]
[1738164891516,1.7516,228.36,228.35,136.43]
[1738164891692,25.904954,228.36,228.35,0.03]
[1738164891888,38.57437087,228.36,228.35,0.03]
[1738164893619,20.37647,228.32,228.24,136.43]
[1738164893819,0.37647,228.29,228.24,136.43]
[1738164894023,12.66941687,228.28,228.24,0.03]
[1738164894719,7.8881,228.32,228.24,0.03]
[1738164894720,20.55751687,228.32,228.24,0.03]
[1738164894900,14.19771687,228.32,228.24,0.03]
[1738164895103,24.153354,228.31,228.24,0.03]
[1738164895298,12.66941687,228.3,228.24,0.03]
[1738164895695,14.42151687,228.3,228.24,0.03]
[1738164897892,4.379,228.36,228.24,0.03]
[1738164897893,1.7518,228.33,228.24,0.03]
[1738164898094,14.22151687,228.38,228.24,249.96804232]
[1738164898287,12.66941687,228.4,228.27,50.0]
[1738164898504,12.66941687,228.4,228.28,0.43789898]
[1738164898922,0.37647,228.39,228.28,0.43789898]
[1738164899618,0.37647,228.39,228.29,4.3803]